[Event "Titled Tuesday Blitz May 4 2021"]
[White "Velickovic, Zoran"]
[Black "Wu, Christopher"]
[WhiteFideId "14601184"]
[BlackFideId "2040875"]
[WhiteElo "2318"]
[BlackElo "2605"]
[Result "0-1"]
[Round "02"]
[TimeControl "180+1"]
[Date "2021.05.04"]
[WhiteClock "0:00:01"]
[BlackClock "0:00:34"]

1. Nf3 {[%clk 0:03:00]}  c5 {[%clk 0:02:59]} 2. g3 {[%clk 0:03:01]}  g6 {[%clk 0:02:59]} 3. Bg2 {[%clk 0:03:01]}  Bg7 {[%clk 0:02:59]} 4. c4 {[%clk 0:03:02]}  Nc6 {[%clk 0:02:57]} 5. O-O {[%clk 0:03:02]}  Nf6 {[%clk 0:02:57]} 6. Nc3 {[%clk 0:03:02]}  O-O {[%clk 0:02:58]} 7. d4 {[%clk 0:03:03]}  cxd4 {[%clk 0:02:57]} 8. Nxd4 {[%clk 0:03:03]}  a6 {[%clk 0:02:57]} 9. c5 {[%clk 0:03:02]}  Qc7 {[%clk 0:02:50]} 10. Nb3 {[%clk 0:02:52]}  b6 {[%clk 0:02:42]} 11. cxb6 {[%clk 0:02:40]}  Qxb6 {[%clk 0:02:43]} 12. Be3 {[%clk 0:02:40]}  Qb4 {[%clk 0:02:30]} 13. a3 {[%clk 0:02:36]}  Qb7 {[%clk 0:02:26]} 14. Rc1 {[%clk 0:02:34]}  Rb8 {[%clk 0:02:21]} 15. Na5 {[%clk 0:02:14]}  Qxb2 {[%clk 0:02:21]} 16. Nxc6 {[%clk 0:02:13]}  dxc6 {[%clk 0:02:18]} 17. Rb1 {[%clk 0:01:47]}  Qxa3 {[%clk 0:02:18]} 18. Rxb8 {[%clk 0:01:47]}  Qxc3 {[%clk 0:02:18]} 19. Qc1 {[%clk 0:01:31]}  Nd5 {[%clk 0:02:04]} 20. Bd2 {[%clk 0:01:03]}  Qxc1 {[%clk 0:01:55]} 21. Rxc1 {[%clk 0:01:02]}  Be5 {[%clk 0:01:56]} 22. Ra8 {[%clk 0:00:56]}  Nc7 {[%clk 0:01:45]} 23. Ra7 {[%clk 0:00:47]}  Nb5 {[%clk 0:01:44]} 24. Rxe7 {[%clk 0:00:41]}  Bf6 {[%clk 0:01:41]} 25. Re3 {[%clk 0:00:32]}  Rd8 {[%clk 0:01:31]} 26. Ba5 {[%clk 0:00:23]}  Rd6 {[%clk 0:01:24]} 27. Bxc6 {[%clk 0:00:20]}  Nd4 {[%clk 0:01:13]} 28. Bg2 {[%clk 0:00:18]}  Bg4 {[%clk 0:01:12]} 29. h3 {[%clk 0:00:16]}  Nxe2+ {[%clk 0:01:11]} 30. Rxe2 {[%clk 0:00:16]}  Bxe2 {[%clk 0:01:11]} 31. Bb4 {[%clk 0:00:10]}  Rd4 {[%clk 0:00:55]} 32. Rc8+ {[%clk 0:00:07]}  Rd8 {[%clk 0:00:51]} 33. Rc2 {[%clk 0:00:06]}  Bb5 {[%clk 0:00:50]} 34. h4 {[%clk 0:00:02]}  h5 {[%clk 0:00:50]} 35. Bf3 {[%clk 0:00:02]}  Kg7 {[%clk 0:00:46]} 36. Kg2 {[%clk 0:00:02]}  Rd3 {[%clk 0:00:33]} 37. Be2 {[%clk 0:00:01]}  Rb3 {[%clk 0:00:34]} 0-1


[Site "https://www.chess.com"]

[Event "Titled Tuesday Blitz May 4 2021"]
[White "Villegas, Pierre"]
[Black "Kanyamarala, Tarun"]
[WhiteFideId "654183"]
[BlackFideId "45004714"]
[WhiteElo "2411"]
[BlackElo "2086"]
[Result "1-0"]
[Round "02"]
[TimeControl "180+1"]
[Date "2021.05.04"]
[WhiteClock "0:00:17"]
[BlackClock "0:00:12"]

1. d4 {[%clk 0:03:00]}  Nf6 {[%clk 0:02:50]} 2. c4 {[%clk 0:02:57]}  c6 {[%clk 0:02:51]} 3. Nf3 {[%clk 0:02:57]}  d5 {[%clk 0:02:46]} 4. Qc2 {[%clk 0:02:57]}  g6 {[%clk 0:02:45]} 5. Bf4 {[%clk 0:02:57]}  Bg7 {[%clk 0:02:44]} 6. e3 {[%clk 0:02:57]}  O-O {[%clk 0:02:44]} 7. Nc3 {[%clk 0:02:56]}  Nh5 {[%clk 0:02:41]} 8. Be5 {[%clk 0:02:42]}  f6 {[%clk 0:02:36]} 9. Bxb8 {[%clk 0:02:29]}  Rxb8 {[%clk 0:02:34]} 10. cxd5 {[%clk 0:02:27]}  cxd5 {[%clk 0:02:34]} 11. Nxd5 {[%clk 0:02:26]}  Be6 {[%clk 0:02:19]} 12. Nc3 {[%clk 0:02:22]}  b5 {[%clk 0:02:19]} 13. d5 {[%clk 0:02:06]}  Bf5 {[%clk 0:02:10]} 14. e4 {[%clk 0:02:00]}  Bg4 {[%clk 0:02:08]} 15. Nd4 {[%clk 0:01:58]}  b4 {[%clk 0:01:59]} 16. Na4 {[%clk 0:01:52]}  Qd6 {[%clk 0:01:33]} 17. Nc6 {[%clk 0:01:28]}  Rbc8 {[%clk 0:01:12]} 18. Qc5 {[%clk 0:01:26]}  Bd7 {[%clk 0:01:05]} 19. Nxe7+ {[%clk 0:01:23]}  Qxe7 {[%clk 0:00:59]} 20. Qxe7 {[%clk 0:01:24]}  Bxa4 {[%clk 0:00:57]} 21. Qxa7 {[%clk 0:00:58]}  Bc2 {[%clk 0:00:46]} 22. f3 {[%clk 0:00:35]}  f5 {[%clk 0:00:43]} 23. Ba6 {[%clk 0:00:35]}  Ra8 {[%clk 0:00:32]} 24. Qb6 {[%clk 0:00:32]}  Bxb2 {[%clk 0:00:28]} 25. O-O {[%clk 0:00:32]}  Bxa1 {[%clk 0:00:20]} 26. Rxa1 {[%clk 0:00:32]}  fxe4 {[%clk 0:00:19]} 27. Qe6+ {[%clk 0:00:27]}  Kg7 {[%clk 0:00:19]} 28. fxe4 {[%clk 0:00:24]}  Rf6 {[%clk 0:00:19]} 29. Qe7+ {[%clk 0:00:22]}  Rf7 {[%clk 0:00:19]} 30. Qe5+ {[%clk 0:00:23]}  Nf6 {[%clk 0:00:19]} 31. Bf1 {[%clk 0:00:21]}  Bxe4 {[%clk 0:00:18]} 32. d6 {[%clk 0:00:20]}  Re8 {[%clk 0:00:18]} 33. Qb2 {[%clk 0:00:20]}  Kg8 {[%clk 0:00:17]} 34. Rd1 {[%clk 0:00:19]}  Nd7 {[%clk 0:00:16]} 35. Bc4 {[%clk 0:00:19]}  Kf8 {[%clk 0:00:14]} 36. Bxf7 {[%clk 0:00:18]}  Kxf7 {[%clk 0:00:13]} 37. Qxb4 {[%clk 0:00:19]}  Bf5 {[%clk 0:00:13]} 38. g4 {[%clk 0:00:18]}  Be6 {[%clk 0:00:13]} 39. Rf1+ {[%clk 0:00:18]}  Kg8 {[%clk 0:00:13]} 40. a4 {[%clk 0:00:17]}  Rb8 {[%clk 0:00:13]} 41. Qd4 {[%clk 0:00:17]}  Rb2 {[%clk 0:00:12]} 42. Qxb2 {[%clk 0:00:17]} 1-0


[Site "https://www.chess.com"]

[Event "Titled Tuesday Blitz May 4 2021"]
[White "Visakh N R"]
[Black "Dong, Bao Nghia"]
[WhiteFideId "25012223"]
[BlackFideId "12400343"]
[WhiteElo "2428"]
[BlackElo "2409"]
[Result "1-0"]
[Round "02"]
[TimeControl "180+1"]
[Date "2021.05.04"]
[WhiteClock "0:00:05"]
[BlackClock "0:00:02"]

1. Nf3 {[%clk 0:03:00]}  d5 {[%clk 0:02:59]} 2. e3 {[%clk 0:02:59]}  e6 {[%clk 0:02:59]} 3. c4 {[%clk 0:02:57]}  Nf6 {[%clk 0:02:58]} 4. b3 {[%clk 0:02:56]}  a5 {[%clk 0:02:57]} 5. a3 {[%clk 0:02:46]}  Be7 {[%clk 0:02:55]} 6. Bb2 {[%clk 0:02:45]}  O-O {[%clk 0:02:54]} 7. Be2 {[%clk 0:02:45]}  Nbd7 {[%clk 0:02:51]} 8. O-O {[%clk 0:02:45]}  a4 {[%clk 0:02:51]} 9. b4 {[%clk 0:02:44]}  dxc4 {[%clk 0:02:49]} 10. Bxc4 {[%clk 0:02:44]}  c5 {[%clk 0:02:49]} 11. bxc5 {[%clk 0:02:42]}  Nxc5 {[%clk 0:02:45]} 12. Qe2 {[%clk 0:02:41]}  Bd7 {[%clk 0:02:40]} 13. Nc3 {[%clk 0:02:38]}  Qa5 {[%clk 0:02:30]} 14. Ne5 {[%clk 0:02:21]}  Be8 {[%clk 0:02:28]} 15. d4 {[%clk 0:02:20]}  Nb3 {[%clk 0:02:09]} 16. Rad1 {[%clk 0:02:07]}  Rb8 {[%clk 0:01:55]} 17. d5 {[%clk 0:01:31]}  b5 {[%clk 0:01:41]} 18. Bxb3 {[%clk 0:01:27]}  axb3 {[%clk 0:01:38]} 19. d6 {[%clk 0:01:27]}  Bxd6 {[%clk 0:01:35]} 20. Rxd6 {[%clk 0:01:26]}  b4 {[%clk 0:01:22]} 21. Nc4 {[%clk 0:01:23]}  Qc5 {[%clk 0:01:21]} 22. axb4 {[%clk 0:01:21]}  Rxb4 {[%clk 0:01:20]} 23. Rd4 {[%clk 0:01:18]}  e5 {[%clk 0:01:10]} 24. Nxe5 {[%clk 0:01:15]}  Rxd4 {[%clk 0:00:49]} 25. exd4 {[%clk 0:01:15]}  Qxd4 {[%clk 0:00:50]} 26. Rd1 {[%clk 0:01:14]}  Qb4 {[%clk 0:00:49]} 27. h3 {[%clk 0:00:57]}  Ba4 {[%clk 0:00:45]} 28. Qc4 {[%clk 0:00:50]}  Qxc4 {[%clk 0:00:43]} 29. Nxc4 {[%clk 0:00:51]}  Bc6 {[%clk 0:00:44]} 30. Ne5 {[%clk 0:00:42]}  Bb7 {[%clk 0:00:41]} 31. Nd7 {[%clk 0:00:41]}  Nxd7 {[%clk 0:00:39]} 32. Rxd7 {[%clk 0:00:42]}  Ba8 {[%clk 0:00:38]} 33. Rd6 {[%clk 0:00:35]}  Rb8 {[%clk 0:00:37]} 34. Nd5 {[%clk 0:00:31]}  Kf8 {[%clk 0:00:29]} 35. Rb6 {[%clk 0:00:26]}  Rd8 {[%clk 0:00:27]} 36. Ba3+ {[%clk 0:00:23]}  Ke8 {[%clk 0:00:26]} 37. Nc7+ {[%clk 0:00:22]}  Kd7 {[%clk 0:00:26]} 38. Nxa8 {[%clk 0:00:22]}  Rxa8 {[%clk 0:00:27]} 39. Rxb3 {[%clk 0:00:22]}  Kc6 {[%clk 0:00:26]} 40. Bb2 {[%clk 0:00:21]}  f6 {[%clk 0:00:25]} 41. h4 {[%clk 0:00:21]}  h5 {[%clk 0:00:20]} 42. g3 {[%clk 0:00:19]}  Ra7 {[%clk 0:00:20]} 43. Kg2 {[%clk 0:00:19]}  Kd5 {[%clk 0:00:20]} 44. Rf3 {[%clk 0:00:18]}  Ke6 {[%clk 0:00:20]} 45. Re3+ {[%clk 0:00:17]}  Kf7 {[%clk 0:00:20]} 46. Bd4 {[%clk 0:00:17]}  Ra4 {[%clk 0:00:19]} 47. Rd3 {[%clk 0:00:16]}  Rc4 {[%clk 0:00:19]} 48. Be3 {[%clk 0:00:16]}  Rc7 {[%clk 0:00:19]} 49. Kf3 {[%clk 0:00:16]}  Rb7 {[%clk 0:00:19]} 50. Ke4 {[%clk 0:00:16]}  Kg6 {[%clk 0:00:17]} 51. Rd5 {[%clk 0:00:10]}  Re7+ {[%clk 0:00:17]} 52. Kf3 {[%clk 0:00:10]}  Rb7 {[%clk 0:00:17]} 53. Bc5 {[%clk 0:00:10]}  Rb3+ {[%clk 0:00:15]} 54. Kg2 {[%clk 0:00:08]}  Rc3 {[%clk 0:00:16]} 55. Be3 {[%clk 0:00:08]}  Rc7 {[%clk 0:00:15]} 56. Rd4 {[%clk 0:00:08]}  Rb7 {[%clk 0:00:15]} 57. f3 {[%clk 0:00:08]}  Rb2+ {[%clk 0:00:14]} 58. Bf2 {[%clk 0:00:08]}  Rb3 {[%clk 0:00:14]} 59. g4 {[%clk 0:00:08]}  hxg4 {[%clk 0:00:15]} 60. fxg4 {[%clk 0:00:09]}  Rc3 {[%clk 0:00:14]} 61. Bg3 {[%clk 0:00:08]}  Rc2+ {[%clk 0:00:14]} 62. Kh3 {[%clk 0:00:08]}  Rc3 {[%clk 0:00:14]} 63. Kg2 {[%clk 0:00:08]}  Rb3 {[%clk 0:00:14]} 64. Bf4 {[%clk 0:00:07]}  Ra3 {[%clk 0:00:14]} 65. h5+ {[%clk 0:00:06]}  Kh7 {[%clk 0:00:14]} 66. Rd7 {[%clk 0:00:06]}  Kg8 {[%clk 0:00:14]} 67. Rd8+ {[%clk 0:00:04]}  Kh7 {[%clk 0:00:13]} 68. Rd7 {[%clk 0:00:03]}  Kg8 {[%clk 0:00:13]} 69. h6 {[%clk 0:00:04]}  gxh6 {[%clk 0:00:13]} 70. Bxh6 {[%clk 0:00:04]}  Ra5 {[%clk 0:00:13]} 71. Kg3 {[%clk 0:00:04]}  Ra4 {[%clk 0:00:11]} 72. Bf4 {[%clk 0:00:04]}  Ra5 {[%clk 0:00:11]} 73. Kh4 {[%clk 0:00:04]}  Kf8 {[%clk 0:00:10]} 74. Rb7 {[%clk 0:00:03]}  Ke8 {[%clk 0:00:10]} 75. Bd6 {[%clk 0:00:03]}  Rd5 {[%clk 0:00:10]} 76. Be7 {[%clk 0:00:03]}  Kf7 {[%clk 0:00:10]} 77. Bd8+ {[%clk 0:00:03]}  Kg6 {[%clk 0:00:10]} 78. Rb8 {[%clk 0:00:03]}  Rd1 {[%clk 0:00:10]} 79. Bc7 {[%clk 0:00:03]}  Rh1+ {[%clk 0:00:10]} 80. Kg3 {[%clk 0:00:03]}  Rg1+ {[%clk 0:00:10]} 81. Kf3 {[%clk 0:00:03]}  Rf1+ {[%clk 0:00:10]} 82. Kg2 {[%clk 0:00:03]}  Rc1 {[%clk 0:00:10]} 83. Bf4 {[%clk 0:00:03]}  Rc3 {[%clk 0:00:10]} 84. Rb6 {[%clk 0:00:03]}  Kf7 {[%clk 0:00:10]} 85. Bg3 {[%clk 0:00:03]}  Rc4 {[%clk 0:00:10]} 86. Kh3 {[%clk 0:00:03]}  Ra4 {[%clk 0:00:10]} 87. Bh4 {[%clk 0:00:03]}  Rf4 {[%clk 0:00:09]} 88. Kg3 {[%clk 0:00:03]}  Rf1 {[%clk 0:00:08]} 89. Ra6 {[%clk 0:00:03]}  Kg7 {[%clk 0:00:07]} 90. Ra4 {[%clk 0:00:03]}  Kg6 {[%clk 0:00:06]} 91. Rf4 {[%clk 0:00:03]}  Rg1+ {[%clk 0:00:07]} 92. Kh2 {[%clk 0:00:03]}  Rb1 {[%clk 0:00:03]} 93. Rxf6+ {[%clk 0:00:03]}  Kg7 {[%clk 0:00:04]} 94. Rf4 {[%clk 0:00:04]}  Rb3 {[%clk 0:00:04]} 95. Bg3 {[%clk 0:00:04]}  Kg6 {[%clk 0:00:05]} 96. Kh3 {[%clk 0:00:05]}  Rb1 {[%clk 0:00:05]} 97. Rd4 {[%clk 0:00:05]}  Rh1+ {[%clk 0:00:06]} 98. Kg2 {[%clk 0:00:05]}  Ra1 {[%clk 0:00:07]} 99. Rd6+ {[%clk 0:00:05]}  Kg5 {[%clk 0:00:07]} 100. Rd5+ {[%clk 0:00:06]}  Kxg4 {[%clk 0:00:07]} 101. Rd4+ {[%clk 0:00:05]}  Kf5 {[%clk 0:00:07]} 102. Bf2 {[%clk 0:00:04]}  Ra3 {[%clk 0:00:07]} 103. Rc4 {[%clk 0:00:03]}  Rb3 {[%clk 0:00:07]} 104. Kf1 {[%clk 0:00:03]}  Ra3 {[%clk 0:00:07]} 105. Ke2 {[%clk 0:00:03]}  Rb3 {[%clk 0:00:07]} 106. Be3 {[%clk 0:00:04]}  Rb1 {[%clk 0:00:06]} 107. Kf3 {[%clk 0:00:03]}  Rf1+ {[%clk 0:00:06]} 108. Bf2 {[%clk 0:00:04]}  Rd1 {[%clk 0:00:06]} 109. Rc5+ {[%clk 0:00:04]}  Ke6 {[%clk 0:00:06]} 110. Ke4 {[%clk 0:00:04]}  Rb1 {[%clk 0:00:05]} 111. Rc6+ {[%clk 0:00:03]}  Kd7 {[%clk 0:00:05]} 112. Rh6 {[%clk 0:00:04]}  Rb5 {[%clk 0:00:05]} 113. Bd4 {[%clk 0:00:03]}  Rg5 {[%clk 0:00:05]} 114. Be5 {[%clk 0:00:03]}  Rg1 {[%clk 0:00:05]} 115. Kd5 {[%clk 0:00:04]}  Rd1+ {[%clk 0:00:05]} 116. Bd4 {[%clk 0:00:04]}  Ke8 {[%clk 0:00:04]} 117. Ke6 {[%clk 0:00:03]}  Kd8 {[%clk 0:00:02]} 118. Be5 {[%clk 0:00:02]}  Kc8 {[%clk 0:00:02]} 119. Rh2 {[%clk 0:00:02]}  Kb7 {[%clk 0:00:02]} 120. Rb2+ {[%clk 0:00:03]}  Ka6 {[%clk 0:00:02]} 121. Bd6 {[%clk 0:00:03]}  Re1+ {[%clk 0:00:02]} 122. Kd7 {[%clk 0:00:03]}  Rc1 {[%clk 0:00:03]} 123. Bc7 {[%clk 0:00:03]}  Rc4 {[%clk 0:00:02]} 124. Bd6 {[%clk 0:00:04]}  Rc1 {[%clk 0:00:02]} 125. Rb3 {[%clk 0:00:04]}  Rc4 {[%clk 0:00:02]} 126. Ke6 {[%clk 0:00:04]}  Rc6 {[%clk 0:00:02]} 127. Kd5 {[%clk 0:00:05]}  Rc1 {[%clk 0:00:03]} 128. Bc5 {[%clk 0:00:04]}  Ka5 {[%clk 0:00:02]} 129. Kc6 {[%clk 0:00:04]}  Rc4 {[%clk 0:00:02]} 130. Ra3+ {[%clk 0:00:04]}  Ra4 {[%clk 0:00:02]} 131. Rh3 {[%clk 0:00:04]}  Ra1 {[%clk 0:00:02]} 132. Rh8 {[%clk 0:00:04]}  Ka4 {[%clk 0:00:02]} 133. Ra8+ {[%clk 0:00:05]}  Kb3 {[%clk 0:00:02]} 134. Rxa1 {[%clk 0:00:05]} 1-0


[Site "https://www.chess.com"]

[Event "Titled Tuesday Blitz May 4 2021"]
[White "Voege, Tobias"]
[Black "Bach, Matthias"]
[WhiteFideId "1270513"]
[BlackFideId "4603168"]
[WhiteElo "2283"]
[BlackElo "2213"]
[Result "1/2-1/2"]
[Round "02"]
[TimeControl "180+1"]
[Date "2021.05.04"]
[WhiteClock "0:00:17"]
[BlackClock "0:00:18"]

1. d4 {[%clk 0:03:00]}  Nf6 {[%clk 0:02:59]} 2. c4 {[%clk 0:02:59]}  c5 {[%clk 0:02:59]} 3. d5 {[%clk 0:02:58]}  e6 {[%clk 0:02:59]} 4. Nc3 {[%clk 0:02:57]}  exd5 {[%clk 0:03:00]} 5. cxd5 {[%clk 0:02:58]}  d6 {[%clk 0:03:00]} 6. e4 {[%clk 0:02:59]}  g6 {[%clk 0:03:01]} 7. f4 {[%clk 0:02:59]}  Bg7 {[%clk 0:03:02]} 8. Bb5+ {[%clk 0:02:59]}  Bd7 {[%clk 0:03:02]} 9. e5 {[%clk 0:02:58]}  Nh5 {[%clk 0:02:59]} 10. Nf3 {[%clk 0:02:50]}  O-O {[%clk 0:02:53]} 11. O-O {[%clk 0:02:47]}  Bg4 {[%clk 0:02:46]} 12. h3 {[%clk 0:02:28]}  Bxf3 {[%clk 0:02:45]} 13. Qxf3 {[%clk 0:02:29]}  dxe5 {[%clk 0:02:44]} 14. f5 {[%clk 0:02:24]}  Nd7 {[%clk 0:02:24]} 15. g4 {[%clk 0:02:17]}  e4 {[%clk 0:02:12]} 16. Nxe4 {[%clk 0:02:10]}  Bd4+ {[%clk 0:02:10]} 17. Kh1 {[%clk 0:02:04]}  Ne5 {[%clk 0:02:07]} 18. Qg2 {[%clk 0:01:57]}  Ng7 {[%clk 0:00:59]} 19. f6 {[%clk 0:01:06]}  Ne8 {[%clk 0:00:57]} 20. Bh6 {[%clk 0:00:51]}  Qxd5 {[%clk 0:00:44]} 21. Bxf8 {[%clk 0:00:37]}  Kxf8 {[%clk 0:00:45]} 22. Ng5 {[%clk 0:00:21]}  Qxg2+ {[%clk 0:00:40]} 23. Kxg2 {[%clk 0:00:22]}  Nd6 {[%clk 0:00:33]} 24. Ba4 {[%clk 0:00:18]}  h6 {[%clk 0:00:30]} 25. Nf3 {[%clk 0:00:18]}  Nxf3 {[%clk 0:00:28]} 26. Rxf3 {[%clk 0:00:19]}  Bxb2 {[%clk 0:00:27]} 27. Re1 {[%clk 0:00:16]}  b5 {[%clk 0:00:21]} 28. Bc2 {[%clk 0:00:16]}  Bd4 {[%clk 0:00:18]} 29. Re7 {[%clk 0:00:15]}  a5 {[%clk 0:00:17]} 30. Rd7 {[%clk 0:00:15]}  Nc4 {[%clk 0:00:15]} 31. Bb3 {[%clk 0:00:14]}  Ne5 {[%clk 0:00:14]} 32. Rb7 {[%clk 0:00:13]}  c4 {[%clk 0:00:12]} 33. Bd1 {[%clk 0:00:10]}  Nxf3 {[%clk 0:00:10]} 34. Bxf3 {[%clk 0:00:11]}  Rd8 {[%clk 0:00:09]} 35. Rxb5 {[%clk 0:00:10]}  c3 {[%clk 0:00:09]} 36. Rb7 {[%clk 0:00:10]}  c2 {[%clk 0:00:09]} 37. Rc7 {[%clk 0:00:10]}  Be3 {[%clk 0:00:08]} 38. Rxc2 {[%clk 0:00:09]}  Rd2+ {[%clk 0:00:08]} 39. Rxd2 {[%clk 0:00:10]}  Bxd2 {[%clk 0:00:09]} 40. Bd5 {[%clk 0:00:09]}  Bc3 {[%clk 0:00:09]} 41. Kf3 {[%clk 0:00:10]}  Bxf6 {[%clk 0:00:09]} 42. Ke4 {[%clk 0:00:11]}  Be7 {[%clk 0:00:09]} 43. Bb3 {[%clk 0:00:11]}  Kg7 {[%clk 0:00:10]} 44. Ke5 {[%clk 0:00:11]}  Bb4 {[%clk 0:00:11]} 45. Ke4 {[%clk 0:00:11]}  Be1 {[%clk 0:00:11]} 46. Kf3 {[%clk 0:00:11]}  f5 {[%clk 0:00:11]} 47. gxf5 {[%clk 0:00:10]}  gxf5 {[%clk 0:00:12]} 48. Bc2 {[%clk 0:00:11]}  Kf6 {[%clk 0:00:13]} 49. Bb3 {[%clk 0:00:11]}  Bd2 {[%clk 0:00:13]} 50. Bg8 {[%clk 0:00:11]}  Bg5 {[%clk 0:00:13]} 51. Bc4 {[%clk 0:00:12]}  Ke5 {[%clk 0:00:13]} 52. Bb3 {[%clk 0:00:13]}  Kd4 {[%clk 0:00:13]} 53. Bg8 {[%clk 0:00:13]}  Kc3 {[%clk 0:00:13]} 54. Be6 {[%clk 0:00:13]}  f4 {[%clk 0:00:13]} 55. Bg8 {[%clk 0:00:13]}  a4 {[%clk 0:00:13]} 56. Bf7 {[%clk 0:00:14]}  Kb4 {[%clk 0:00:13]} 57. Kg4 {[%clk 0:00:14]}  Ka3 {[%clk 0:00:14]} 58. h4 {[%clk 0:00:14]}  Bf6 {[%clk 0:00:13]} 59. h5 {[%clk 0:00:13]}  Bg5 {[%clk 0:00:14]} 60. Kf3 {[%clk 0:00:13]}  Kb4 {[%clk 0:00:14]} 61. Bg8 {[%clk 0:00:13]}  a3 {[%clk 0:00:14]} 62. Bf7 {[%clk 0:00:14]}  Kc3 {[%clk 0:00:15]} 63. Bg8 {[%clk 0:00:15]}  Kb2 {[%clk 0:00:16]} 64. Bf7 {[%clk 0:00:15]}  Kc3 {[%clk 0:00:16]} 65. Bg8 {[%clk 0:00:16]}  Kb2 {[%clk 0:00:17]} 66. Bf7 {[%clk 0:00:17]}  Kc3 {[%clk 0:00:18]} 1/2-1/2


[Site "https://www.chess.com"]

[Event "Titled Tuesday Blitz May 4 2021"]
[White "Vukovic, Zdravko"]
[Black "Li, Hui"]
[WhiteFideId "900877"]
[BlackFideId "15400310"]
[WhiteElo "2475"]
[BlackElo "1954"]
[Result "1-0"]
[Round "02"]
[TimeControl "180+1"]
[Date "2021.05.04"]
[WhiteClock "0:01:09"]
[BlackClock "0:00:01"]

1. e4 {[%clk 0:02:59]}  e5 {[%clk 0:02:59]} 2. d4 {[%clk 0:02:59]}  exd4 {[%clk 0:02:59]} 3. Nf3 {[%clk 0:03:00]}  Nf6 {[%clk 0:02:56]} 4. e5 {[%clk 0:02:59]}  Ne4 {[%clk 0:02:57]} 5. Qxd4 {[%clk 0:02:59]}  d5 {[%clk 0:02:57]} 6. exd6 {[%clk 0:02:59]}  Nxd6 {[%clk 0:02:58]} 7. Nc3 {[%clk 0:02:58]}  Nc6 {[%clk 0:02:58]} 8. Qd1 {[%clk 0:02:47]}  Be7 {[%clk 0:02:44]} 9. Bd3 {[%clk 0:02:46]}  Bf5 {[%clk 0:02:25]} 10. O-O {[%clk 0:02:42]}  Bxd3 {[%clk 0:02:05]} 11. Qxd3 {[%clk 0:02:42]}  O-O {[%clk 0:01:52]} 12. Bf4 {[%clk 0:02:41]}  Nb4 {[%clk 0:01:30]} 13. Qe2 {[%clk 0:02:27]}  Re8 {[%clk 0:01:09]} 14. a3 {[%clk 0:02:25]}  Bf6 {[%clk 0:00:54]} 15. Qd2 {[%clk 0:01:57]}  Nc6 {[%clk 0:00:53]} 16. Nd5 {[%clk 0:01:46]}  Bxb2 {[%clk 0:00:41]} 17. Rab1 {[%clk 0:01:44]}  Bxa3 {[%clk 0:00:26]} 18. Qc3 {[%clk 0:01:44]}  Ne4 {[%clk 0:00:22]} 19. Qc4 {[%clk 0:01:37]}  Bd6 {[%clk 0:00:19]} 20. Rfd1 {[%clk 0:01:30]}  Bxf4 {[%clk 0:00:14]} 21. Nxf4 {[%clk 0:01:29]}  Nd6 {[%clk 0:00:15]} 22. Qa2 {[%clk 0:01:23]}  h6 {[%clk 0:00:08]} 23. Rxb7 {[%clk 0:01:15]}  Nxb7 {[%clk 0:00:07]} 24. Rxd8 {[%clk 0:01:14]}  Raxd8 {[%clk 0:00:07]} 25. h3 {[%clk 0:01:15]}  Nd6 {[%clk 0:00:07]} 26. Qa4 {[%clk 0:01:14]}  Ne5 {[%clk 0:00:06]} 27. Nxe5 {[%clk 0:01:14]}  Rxe5 {[%clk 0:00:06]} 28. Qxa7 {[%clk 0:01:14]}  Re1+ {[%clk 0:00:06]} 29. Kh2 {[%clk 0:01:14]}  Re7 {[%clk 0:00:03]} 30. Nd5 {[%clk 0:01:13]}  Red7 {[%clk 0:00:03]} 31. Qa4 {[%clk 0:01:13]}  c5 {[%clk 0:00:02]} 32. Qc6 {[%clk 0:01:12]}  Nf5 {[%clk 0:00:01]} 33. c4 {[%clk 0:01:09]} 1-0


[Site "https://www.chess.com"]

[Event "Titled Tuesday Blitz May 4 2021"]
[White "Ward-Tsh"]
[Black "Moskalenko, Alexander"]
[BlackFideId "4155351"]
[WhiteElo "2511"]
[BlackElo "2495"]
[Result "0-1"]
[Round "02"]
[TimeControl "180+1"]
[Date "2021.05.04"]
[WhiteClock "0:00:01"]
[BlackClock "0:00:37"]

1. d4 {[%clk 0:03:00]}  Nf6 {[%clk 0:02:59]} 2. Nf3 {[%clk 0:02:59]}  g6 {[%clk 0:03:00]} 3. Nc3 {[%clk 0:02:59]}  d5 {[%clk 0:03:00]} 4. Bg5 {[%clk 0:02:58]}  Nbd7 {[%clk 0:03:00]} 5. e3 {[%clk 0:02:57]}  c6 {[%clk 0:02:58]} 6. Bd3 {[%clk 0:02:57]}  Qb6 {[%clk 0:02:57]} 7. Rb1 {[%clk 0:02:52]}  h6 {[%clk 0:02:56]} 8. Bf4 {[%clk 0:02:48]}  Bg7 {[%clk 0:02:55]} 9. O-O {[%clk 0:02:45]}  Nh5 {[%clk 0:02:54]} 10. Ne2 {[%clk 0:02:01]}  Nxf4 {[%clk 0:02:49]} 11. Nxf4 {[%clk 0:02:02]}  e5 {[%clk 0:02:49]} 12. dxe5 {[%clk 0:01:35]}  Nxe5 {[%clk 0:02:50]} 13. Nxe5 {[%clk 0:01:35]}  Bxe5 {[%clk 0:02:50]} 14. c4 {[%clk 0:01:36]}  dxc4 {[%clk 0:02:29]} 15. Bxc4 {[%clk 0:01:37]}  Bxf4 {[%clk 0:02:30]} 16. exf4 {[%clk 0:01:33]}  O-O {[%clk 0:02:30]} 17. Qd6 {[%clk 0:01:27]}  Bf5 {[%clk 0:02:29]} 18. Rbe1 {[%clk 0:01:10]}  Qxb2 {[%clk 0:02:27]} 19. Re7 {[%clk 0:01:08]}  Kg7 {[%clk 0:02:04]} 20. Qc7 {[%clk 0:00:53]}  Qf6 {[%clk 0:01:35]} 21. Qxb7 {[%clk 0:00:52]}  Rad8 {[%clk 0:01:03]} 22. h3 {[%clk 0:00:47]}  h5 {[%clk 0:00:55]} 23. Rfe1 {[%clk 0:00:43]}  Rd4 {[%clk 0:00:55]} 24. Bxf7 {[%clk 0:00:33]}  Kh6 {[%clk 0:00:53]} 25. Bg8 {[%clk 0:00:22]}  Rxf4 {[%clk 0:00:51]} 26. Rh7+ {[%clk 0:00:13]}  Kg5 {[%clk 0:00:51]} 27. Bb3 {[%clk 0:00:14]}  Rxf2 {[%clk 0:00:47]} 28. h4+ {[%clk 0:00:10]}  Kxh4 {[%clk 0:00:46]} 29. Qb4+ {[%clk 0:00:10]}  Bg4 {[%clk 0:00:38]} 30. Qc4 {[%clk 0:00:09]}  Rxg2+ {[%clk 0:00:37]} 31. Kh1 {[%clk 0:00:06]}  Qf2 {[%clk 0:00:38]} 32. Rxh5+ {[%clk 0:00:01]}  gxh5 {[%clk 0:00:37]} 0-1


[Site "https://www.chess.com"]

[Event "Titled Tuesday Blitz May 4 2021"]
[White "Yeremyan, Alen"]
[Black "Kanyamarala, Trisha"]
[WhiteFideId "13308998"]
[BlackFideId "45004722"]
[WhiteElo "2158"]
[BlackElo "2074"]
[Result "1-0"]
[Round "02"]
[TimeControl "180+1"]
[Date "2021.05.04"]
[WhiteClock "0:02:18"]
[BlackClock "0:00:02"]

1. d4 {[%clk 0:03:00]}  Nf6 {[%clk 0:02:59]} 2. Nf3 {[%clk 0:02:58]}  d5 {[%clk 0:02:57]} 3. e3 {[%clk 0:02:58]}  e6 {[%clk 0:02:56]} 4. Bd3 {[%clk 0:02:59]}  c5 {[%clk 0:02:55]} 5. O-O {[%clk 0:02:59]}  c4 {[%clk 0:02:53]} 6. Be2 {[%clk 0:02:59]}  Nc6 {[%clk 0:01:57]} 7. b3 {[%clk 0:02:57]}  cxb3 {[%clk 0:01:32]} 8. axb3 {[%clk 0:02:58]}  Bd6 {[%clk 0:01:33]} 9. c4 {[%clk 0:02:58]}  O-O {[%clk 0:01:32]} 10. Nc3 {[%clk 0:02:59]}  b6 {[%clk 0:01:24]} 11. Bb2 {[%clk 0:02:52]}  Bb7 {[%clk 0:01:23]} 12. Rc1 {[%clk 0:02:37]}  Ne4 {[%clk 0:01:04]} 13. Nxe4 {[%clk 0:02:32]}  dxe4 {[%clk 0:01:03]} 14. Nd2 {[%clk 0:02:33]}  f5 {[%clk 0:01:01]} 15. f4 {[%clk 0:02:31]}  Na5 {[%clk 0:00:43]} 16. c5 {[%clk 0:02:26]}  bxc5 {[%clk 0:00:41]} 17. dxc5 {[%clk 0:02:26]}  Be7 {[%clk 0:00:35]} 18. b4 {[%clk 0:02:27]}  Nc6 {[%clk 0:00:30]} 19. Bc3 {[%clk 0:02:28]}  a6 {[%clk 0:00:24]} 20. Bc4 {[%clk 0:02:26]}  Qc8 {[%clk 0:00:19]} 21. Qb3 {[%clk 0:02:27]}  Nd8 {[%clk 0:00:18]} 22. Rfd1 {[%clk 0:02:25]}  Bc6 {[%clk 0:00:14]} 23. Ra1 {[%clk 0:02:23]}  Kh8 {[%clk 0:00:12]} 24. Be2 {[%clk 0:02:22]}  Bd5 {[%clk 0:00:10]} 25. Nc4 {[%clk 0:02:23]}  Qb7 {[%clk 0:00:08]} 26. Qb2 {[%clk 0:02:23]}  Bxc4 {[%clk 0:00:03]} 27. Bxg7+ {[%clk 0:02:20]}  Kg8 {[%clk 0:00:03]} 28. Bxf8 {[%clk 0:02:19]}  Kxf8 {[%clk 0:00:03]} 29. Qh8+ {[%clk 0:02:18]}  Kf7 {[%clk 0:00:02]} 30. Bh5# {[%clk 0:02:18]} 1-0


[Site "https://www.chess.com"]